{"text_format":"1","workbook":"xlsx","n_sheets":15,"sheets":["Portada ","ContraPortada","INDICADORES","LA ESCUELA COMO EJE INTEGRADOR","ESCUELAS VERDES","CIUDAD ESCUELA COMPROMISO","IMPLEMENTACION CATEDRA PAZ","MEJORES DOCENTES Y DIRECTIVOS","INCORPORACION DE LA TECNOLOGIA","FORTALECIMIENTOMODE ETNOEDUC","SABER MAS SABER MEJOR","ACTUALIZACION DE CURR ESCOLARES","ESCUELAS BILINGUES","RESUMEN POR PROYECTOS","PAM  -DIC 2016"],"not_rendered":{"charts":31,"images":3,"macros":0,"external_links":0,"defined_names":25,"comments":0,"pivot_tables":0},"unopened":[],"bounds":{"document_bytes":16777216,"sheet_cells":100000,"rows_first":2000,"rows_last":500,"rows_between":2000,"halvings":0,"cell_chars":16384,"cell_head_chars":4096},"cells_cut":0,"cells_raw":0,"read":"whole","date_system":"1900"}

{"sheet":"Portada ","index":0,"n_rows":0,"n_cols":0,"rows_kept":0,"cut":false,"hidden":false,"merged":[]}

{"sheet":"ContraPortada","index":1,"n_rows":0,"n_cols":0,"rows_kept":0,"cut":false,"hidden":false,"merged":[]}

{"sheet":"INDICADORES","index":2,"n_rows":144,"n_cols":9,"rows_kept":144,"cut":false,"hidden":false,"merged":[[93,2,94,2],[93,3,94,7],[57,4,58,4],[59,8,60,8],[61,8,62,8],[59,4,60,4],[61,4,62,4],[57,8,58,8],[67,2,72,2],[83,2,84,2],[83,4,84,4],[83,8,84,8],[85,2,86,2],[85,4,86,4],[85,5,86,5],[85,6,86,6],[85,7,86,7],[85,8,86,8],[77,3,79,3],[77,4,82,4],[67,3,69,3],[67,4,72,4],[67,5,69,5],[67,6,69,6],[67,7,69,7],[70,3,72,3],[70,5,72,5],[80,3,82,3],[80,5,82,5],[80,6,82,6],[80,7,82,7],[77,5,79,5],[77,6,79,6],[77,7,79,7],[77,8,82,8],[37,8,42,8],[29,1,34,1],[35,1,48,1],[43,5,45,5],[46,5,48,5],[49,8,50,8],[32,5,34,5],[49,2,50,2],[29,8,34,8],[32,7,34,7],[29,7,31,7],[37,5,39,5],[40,5,42,5],[49,1,66,1],[59,2,60,2],[61,2,62,2],[51,2,56,2],[51,7,53,7],[51,5,53,5],[54,5,56,5],[51,3,53,3],[51,4,56,4],[21,6,23,6],[21,2,26,2],[19,2,20,2],[37,7,39,7],[40,6,42,6],[40,7,42,7],[65,3,66,7],[57,2,58,2],[70,6,72,6],[70,7,72,7],[35,2,36,2],[35,3,36,7],[7,1,20,1],[43,2,48,2],[37,2,42,2],[37,3,39,3],[40,3,42,3],[43,3,45,3],[32,3,34,3],[46,3,48,3],[37,4,42,4],[10,3,12,3],[24,3,26,3],[29,2,34,2],[13,2,18,2],[27,2,28,2],[7,2,12,2],[27,3,28,7],[29,5,31,5],[29,3,31,3],[29,4,34,4],[37,6,39,6],[32,6,34,6],[24,7,26,7],[24,6,26,6],[13,7,15,7],[35,8,36,8],[2,3,2,8],[1,3,1,8],[0,3,0,8],[3,3,3,4],[4,4,4,8],[5,4,6,5],[4,3,6,3],[3,5,3,6],[5,6,5,8],[7,5,12,5],[7,6,12,6],[7,7,12,7],[21,8,26,8],[19,3,20,7],[16,3,18,3],[13,4,18,4],[24,5,26,5],[13,6,15,6],[13,3,15,3],[27,8,28,8],[29,6,31,6],[16,7,18,7],[16,6,18,6],[0,1,3,2],[4,1,6,2],[21,1,28,1],[3,7,3,8],[51,8,56,8],[65,2,66,2],[63,2,64,2],[63,4,64,4],[46,6,48,6],[43,4,48,4],[43,6,45,6],[43,7,45,7],[46,7,48,7],[13,8,18,8],[21,3,23,3],[16,5,18,5],[7,8,12,8],[13,5,15,5],[7,3,9,3],[7,4,12,4],[21,4,26,4],[21,5,23,5],[21,7,23,7],[19,8,20,8],[122,2,122,4],[123,2,124,3],[123,4,124,4],[135,2,136,3],[135,4,136,4],[137,2,138,3],[137,4,138,4],[139,2,140,3],[139,4,140,4],[67,1,76,1],[73,2,74,2],[73,4,74,4],[73,8,74,8],[75,2,76,2],[75,3,76,7],[75,8,76,8],[65,8,66,8],[43,8,48,8],[63,8,64,8],[67,8,72,8],[49,3,50,7],[51,6,53,6],[54,3,56,3],[54,6,56,6],[54,7,56,7],[87,8,88,8],[89,2,90,2],[89,4,90,4],[89,5,90,5],[89,6,90,6],[89,7,90,7],[89,8,90,8],[91,2,92,2],[91,4,92,4],[91,5,92,5],[91,6,92,6],[91,7,92,7],[91,8,92,8],[87,2,88,2],[87,4,88,4],[87,5,88,5],[87,6,88,6],[87,7,88,7],[93,8,94,8],[95,1,106,1],[95,2,100,2],[95,3,97,3],[95,4,100,4],[95,5,97,5],[95,6,97,6],[95,7,97,7],[95,8,100,8],[98,3,100,3],[98,5,100,5],[98,6,100,6],[98,7,100,7],[101,2,102,2],[101,4,102,4],[101,8,102,8],[103,2,104,2],[103,4,104,4],[103,8,104,8],[105,2,106,2],[105,3,106,7],[105,8,106,8],[77,1,94,1],[77,2,82,2],[107,1,111,1],[107,2,108,2],[107,4,108,4],[107,8,108,8],[109,2,110,2],[109,4,110,4],[109,8,110,8],[111,3,111,7],[112,1,119,1],[112,2,117,2],[112,3,114,3],[112,4,117,4],[112,5,114,5],[112,6,114,6],[112,7,114,7],[112,8,117,8],[115,3,117,3],[115,5,117,5],[115,6,117,6],[115,7,117,7],[118,2,119,2],[118,3,119,7],[118,8,119,8],[145,2,146,2],[145,3,146,3],[125,1,134,1],[125,2,126,3],[125,4,126,4],[127,2,128,3],[127,4,128,4],[129,2,130,3],[129,4,130,4],[131,2,132,3],[131,4,132,4],[133,2,134,3],[133,4,134,4],[141,2,142,3],[141,4,142,4],[143,2,144,3],[143,4,144,4]]}
[null,null,null,"SECRETARIA DE EDUCACION DISTRITAL CARTAGENA DE INDIAS"]
[null,null,null,"GEDGE02. COMPROMISO DE LA DIRECCIÓN"]
[null,null,null,"INFORME DE SEGUIMIENTO"]
[null,null,null,"Codigo:   GEDGE02-F001",null,"Versión: 1",null,"Vigencia: 20/10/2009"]
[null,"INDICADORES",null,"UBICACIÓN GEOGRÁFICA"]
[null,null,null,null,"META",null,"DICIEMBRE"]
[null,null,null,null,null,null,"valor","%","TOTAL"]
[null,"LA ESCUELA COMO EJE INTEGRADOR DE LOS PROCESOS FORMATIVOS","Nodo social humanistico implementado","URBANO",1,1,0,0,{"$f":"(H8+H11)/2","v":0}]
[]
[]
[null,null,null,"RURAL"]
[]
[]
[null,null,"Numero de institucione esducativas oficiales beneficiadas con el nodo social humanistico implementado","URBANO",2,1,1,{"$f":"SUM(G14/F14)","v":1},{"$f":"(H14+H17)","v":2}]
[]
[]
[null,null,null,"RURAL",null,1,1,{"$f":"G17/F17","v":1}]
[]
[]
[null,null,"SUB - TOTAL PROYECTO",null,null,null,null,null,{"$f":"SUM(I8:I19)/3","v":0.66666666666666663}]
[]
[null,"ESCUELAS VERDES","Proyectos ambientales educativos - PRAES ajustados en IEO","URBANO",10,7,7,{"$f":"G22/F22","v":1},{"$f":"SUM(H22:H27)/2","v":1}]
[]
[]
[null,null,null,"RURAL",null,3,3,{"$f":"G25/F25","v":1}]
[]
[]
[null,null,"SUB - TOTAL PROYECTO",null,null,null,null,null,{"$f":"SUM(I22)/1","v":1}]
[]
[null,"CIUDAD ESCUELA COMPROMISOS DE TODOS Y PARA TODOS","Numero de IEO con el programa escuelas para padres fortalecidos","URBANO",10,8,8,{"$f":"G30/F30","v":1},{"$f":"(H30+H33)/2","v":1}]
[]
[]
[null,null,null,"RURAL",null,2,2,{"$f":"G33/F33","v":1}]
[]
[]
[null,"IMPLEMENTACION DE LA CATEDRADE LA PAZ","SUB - TOTAL PROYECTO",null,null,null,null,null,{"$f":"SUM(I30:I35)/1","v":1}]
[]
[null,null,"Docentes formados en justicia, reconciliacion y tolerancia","URBANO",200,160,65,{"$f":"G38/F38","v":0.40625},{"$f":"(H38+H41)/2","v":0.54062500000000002}]
[]
[]
[null,null,null,"RURAL",null,40,27,{"$f":"G41/F41","v":0.67500000000000004}]
[]
[]
[null,null,"Numero de IEO con la catedra Cartagena en paz implementada","URBANO",10,8,6,{"$f":"G44/F44","v":0.75},{"$f":"(H44+H47)/2","v":0.875}]
[]
[]
[null,null,null,"RURAL",null,2,2,{"$f":"G47/F47","v":1}]
[]
[]
[null,"MEJORES DOCENTES Y DIRECTIVOS DOCENTES","SUB - TOTAL PROYECTO",null,null,null,null,null,{"$f":"SUM(I38:I49)/2","v":0.70781249999999996}]
[]
[null,null,"Numero de docentes formados en evaluacion por compentencias","URBANO",225,135,148,{"$f":"G52/F52","v":1.0962962962962963},{"$f":"(H52+H55)/2","v":0.93703703703703711}]
[]
[]
[null,null,null,"RURAL",null,90,70,{"$f":"G55/F55","v":0.77777777777777779}]
[]
[]
[null,null,"Numero de docentes formados  en metodologia de investigacion para el mejoramiento de la calidad educativa","URBANO",100,60,123,{"$f":"G58/F58","v":2.0499999999999998},{"$f":"SUM(H58:H59)/2","v":1.4375}]
[null,null,null,"RURAL",null,40,33,0.82499999999999996]
[null,null,"Numero de docentes y directivos docentes formados en especializaciones y/o maestrias.","URBANO",40,24,123,5.125,{"$f":"SUM(H60:H61)/2","v":3.59375}]
[null,null,null,"RURAL",null,16,33,2.0625]
[null,null,"Numero de  docentes y directivos docentes cualificado en gestion escolar","URBANO",70,42,17,0.40476190476190477,{"$f":"SUM(H62:H63)/2","v":0.29166666666666669}]
[null,null,null,"RURAL",null,28,5,0.17857142857142858]
[null,null,"Numero de docentes y directivos docentes con experiencias educativas innovadoras para el mejoramiento de la calidad educativa","URBANO ",100,60,280,4.666666666666667,{"$f":"SUM(H64:H65)/2","v":3.0833333333333335}]
[null,null,null,"RURAL ",null,40,60,1.5]
[null,null,"SUB - TOTAL PROYECTO",null,null,null,null,null,1]
[]
[null,"FORTALECIMIENTO DEL MODELO PEDAGOGICO EN LAS INSTITUCIONES ETNOEDUCATIVAS DEL DISTRITO DE CARTAGENA","Numero de IEO Etnoeducativa con  PEI ajustado y actualizado","URBANO",5,0,{"$f":"SUM(F68)","v":0},0,{"$f":"SUM(H68:H73)/2","v":0.5}]
[]
[]
[null,null,null,"RURAL",null,5,{"$f":"SUM(F71)","v":5},{"$f":"G71/F71","v":1}]
[]
[]
[null,null,"Numero de IEO que desarrollan la Catedra de estudios Afrocolombianos","RURAL",10,0,0,0,{"$f":"SUM(H74:H75)/2","v":0.5}]
[null,null,null,"URBANO ",null,10,10,{"$f":"G75/F75","v":1}]
[null,null,"SUB - TOTAL PROYECTO",null,null,null,null,null,{"$f":"SUM(I68:I74)/2","v":0.5}]
[]
[null,"SABER MAS SABER MEJOR- GESTION ESCOLAR DE INSTITUCIONES EDUCATIVAS OFICIALES","Numero de establecimiento Educativos Oficiales con  Indice Sintetico de Calidad Educativa -ISCE en la Media, con nivel al menos igual al  ISCE promedio Nacional","URBANO",9,7,7,{"$f":"G78/F78","v":1},{"$f":"SUM(H78:H83)/2","v":1}]
[]
[]
[null,null,null,"RURAL",null,2,2,{"$f":"G81/F81","v":1}]
[]
[]
[null,null,"Numero de establecimientos Educativos Oficiales con grado 11° con desempeños alineados en clasificacion A+, A y B","URBANO ",6,5,5,{"$f":"G84/F84","v":1},{"$f":"SUM(H84:H85)/2","v":1}]
[null,null,null,"RURAL ",null,1,1,{"$f":"G85/F85","v":1}]
[null,null,"Mejorar componente desempeño (ISCE) Basica primaria","URBANO ",5.25,5.25,5.25,{"$f":"G86/F86","v":1},{"$f":"H86/1","v":1}]
[null,null,null,"RURAL "]
[null,null,"Mejorar componente desempeño (ISCE) Basica secundaria","URBANO",4.95,4.95,4.95,{"$f":"G88/F88","v":1},{"$f":"H88/1","v":1}]
[null,null,null,"RURAL"]
[null,null,"Mejorar componente desempeño (ISCE) Media","URBANO",5.42,5,5,{"$f":"G90/F90","v":1},{"$f":"H90/1","v":1}]
[null,null,null,"RURAL"]
[null,null,"Numero de IEO con semilleros de investigacion implementados","URBANO",12,12,12,{"$f":"G92/F92","v":1},{"$f":"H92/1","v":1}]
[null,null,null,"RURAL"]
[null,null,"SUB - TOTAL PROYECTO",null,null,null,null,null,{"$f":"SUM(I78:I93)/6","v":1}]
[]
[null,"ACTUALIZACION DE CURRICULOS ESCOLARES","Numero de instituciones educativas con curriculos ajustados a la politica vigente implementado","URBANO",10,15,15,{"$f":"G96/F96","v":1},{"$f":"(H96+H99)/2","v":1}]
[]
[]
[null,null,null,"RURAL",null,1,1,{"$f":"G99/F99","v":1}]
[]
[]
[null,null,"Numero de establecimientos educativos oficiales con bajo indice en los indicadores de calidad y eficiencia interna, fortalecidos en la gestion escolar integral.","URBANO ",10,6,6,{"$f":"G102/F102","v":1},{"$f":"(H102+H103)/2","v":1}]
[null,null,null,"RURAL ",null,4,4,{"$f":"G103/F103","v":1}]
[null,null,"Numero de IEO con Proyectos educativos resignificados","URBANO",10,6,6,{"$f":"G104/F104","v":1},{"$f":"(H104+H105)/2","v":1}]
[null,null,null,"RURAL",null,4,4,{"$f":"G105/F105","v":1}]
[null,null,"SUB - TOTAL PROYECTO",null,null,null,null,null,{"$f":"SUM(I96:I105)/3","v":1}]
[]
[null,"INCORPORACIÓN DE LA TECNOLOGÍA EN EL PROCESO DE ENSEÑANZA Y APRENDIZAJE","Número de docentes y directivos docentes formados en uso y apropiación de TICs","URBANO",532,500,572,{"$f":"G108/F108","v":1.1439999999999999},{"$f":"(H108+H109)/2","v":1.2282500000000001}]
[null,null,null,"RURAL",null,32,42,{"$f":"G109/F109","v":1.3125}]
[null,null,"Número de docentes que aplican las TIC en procesos de enseñanza y aprendizajes","URBANO",60,40,30,0.75,{"$f":"(H110+H111)/2","v":0.875}]
[null,null,null,"RURAL",null,20,20,1]
[null,null,"SUB - TOTAL PROYECTO",null,null,null,null,null,1]
[null,"ESCUELAS BILINGÜES","% DE ESTUDIANTES de IEO con jornada extendida bilingüe con nivel minimo \"B1\" en las pruebas saber 11°, según el MCERL","URBANO",0.05,4.7500000000000001E-2,4.7500000000000001E-2,{"$f":"G113/F113","v":1},{"$f":"SUM(H113,H116)/2","v":1}]
[]
[]
[null,null,null,"RURAL",null,2.5000000000000001E-3,2.5000000000000001E-3,{"$f":"G116/F116","v":1}]
[]
[]
[null,null,"SUB - TOTAL PROYECTO",null,null,null,null,null,{"$f":"SUM(I113:I118)/1","v":1}]
[]
[]
[]
[null,null,"GENERAL POR PROYECTO"]
[null,null,"LA ESCUELA COMO EJE INTEGRADOR DE LOS PROCESOS FORMATIVOS",null,{"$f":"I20","v":0.66666666666666663}]
[]
[null,null,"ESCUELAS VERDES",null,{"$f":"I28","v":1}]
[]
[null,null,"CIUDAD ESCUELA COMPROMISOS DE TODOS Y PARA TODOS",null,{"$f":"I36","v":1}]
[]
[null,null,"IMPLEMENTACION DE LA CATEDRA DE LA PAZ",null,{"$f":"I50","v":0.70781249999999996}]
[]
[null,null,"MEJORES DOCENTES Y DIRECTIVOS DOCENTES",null,{"$f":"I66","v":1}]
[]
[null,null,"FORTALECIMIENTO DEL MODELO PEDAGOGICO EN LAS INSTITUCIONES ETNOEDUCATIVAS DEL DISTRITO DE CARTAGENA",null,{"$f":"I76","v":0.5}]
[]
[null,null,"SABER MAS SABER MEJOR- GESTION ESCOLAR DE INSTITUCIONES EDUCATIVAS OFICIALES",null,{"$f":"I94","v":1}]
[]
[null,null,"ACTUALIZACION DE CURRICULOS ESCOLARES",null,{"$f":"I106","v":1}]
[]
[null,null,"INCORPORACIÓN DE LA TECNOLOGÍA EN EL PROCESO DE ENSEÑANZA Y APRENDIZAJE",null,{"$f":"I112","v":1}]
[]
[null,null,"ESCUELAS BILINGÜES",null,{"$f":"I119","v":1}]
[]
[null,null,"TOTAL PAM",null,{"$f":"SUM(E124:E142)/10","v":0.88744791666666667}]

{"sheet":"LA ESCUELA COMO EJE INTEGRADOR","index":3,"n_rows":37,"n_cols":15,"rows_kept":37,"cut":false,"hidden":false,"merged":[[26,1,26,3],[12,1,12,2],[12,4,12,6],[6,1,6,14],[24,1,24,14],[25,1,25,2],[25,3,25,14],[13,1,13,2],[13,4,13,6],[5,6,5,8],[5,11,5,14],[7,3,7,4],[7,13,7,14],[10,1,10,14],[27,1,27,2],[26,4,26,14],[27,12,27,13],[3,8,3,11],[3,12,3,14],[5,2,5,4],[7,9,7,10],[7,11,7,12],[7,5,7,6],[3,4,3,7],[0,1,3,3],[7,1,7,2],[7,7,7,8],[0,4,0,14],[1,4,1,14],[2,4,2,14]]}
[null,null,null,null,"SECRETARIA DE EDUCACION DISTRITAL CARTAGENA DE INDIAS"]
[null,null,null,null,"GEDGE02. COMPROMISO DE LA DIRECCIÓN"]
[null,null,null,null,"INFORME DE SEGUIMIENTO"]
[null,null,null,null,"Codigo:   GEDGE02-F001",null,null,null,"Versión: 1",null,null,null,"Vigencia: 20/10/2009"]
[]
[null,"FECHA:","Diciembre 15 De 2016",null,null,"PERIODO","Diciembre 15 de 2016",null,null,"RESPONSABLE:",null,"CECILIA MORALES URSHELA"]
[null,"1. INDICADORES"]
[null,"Nodo social humanístico implementado",null,{"$f":"INDICADORES!C14","v":"Numero de institucione esducativas oficiales beneficiadas con el nodo social humanistico implementado"}]
[null,"META","REAL","META","REAL","META","REAL","META","REAL","META","REAL","META","REAL","META","REAL"]
[null,1,0,{"$f":"INDICADORES!E14","v":2},{"$f":"INDICADORES!G14+INDICADORES!G17","v":2}]
[null,"GRAFICAS"]
[]
[]
[]
[]
[]
[]
[]
[]
[]
[]
[]
[]
[]
[null,"2. ANALISIS"]
[null,"ANALISIS:",null,"1, La no ejecución del convenio interinstitucional que garantice la implementación del Nodo Social Humanístico con enfasís en danza y música.                                                                                                                                                                                                 2. Se realizó con la gestión de aliados y la articulación de la alianza Fundación Mamonal y aliado internacional.                                                                                   "]
[null,"RECOMENDACIONES \nPARA LA MEJORA",null,null,"1.  Desarrollo de un convenio publico - para la implementación de un  programas de formacion con enfasis en musica y danzas a fin de fortalecer las manifestaciones artisticas y musicales de niños, niñas y jovenes en 10 I.E.O. \n2. Realizar la Transferencia Directa a la IE de la Boquilla, a fin de desarrollar el programa de musica con niños, niñas y jovenes de la I.E.O como jornada escolar complementaria.          "]
[null,"¿Se generan \nacciones?",null,"Correctivas     No. ",null,null," Preventiva        No. ",null,null,"    De mejora      No.  X",null,null,"Producto No Conforme",null,"No."]
[]
[]
[null,null,null,null,null,null,null,null,"  "]
[]
[]
[]
[]
[]
[null,null,null,null,null,null,null,null,"  "]

{"sheet":"ESCUELAS VERDES","index":4,"n_rows":59,"n_cols":17,"rows_kept":59,"cut":false,"hidden":false,"merged":[[49,1,49,2],[49,12,49,15],[12,1,12,2],[12,4,12,6],[47,1,47,2],[47,3,47,16],[48,1,48,3],[48,4,48,16],[13,1,13,2],[13,4,13,6],[7,11,7,12],[46,1,46,16],[5,2,5,4],[5,6,5,8],[5,11,5,16],[6,1,6,16],[7,1,7,2],[7,3,7,4],[7,5,7,6],[7,7,7,8],[7,9,7,10],[7,13,7,14],[7,15,7,16],[10,1,10,16],[0,1,3,3],[0,4,0,16],[1,4,1,16],[2,4,2,16],[3,4,3,7],[3,8,3,11],[3,12,3,16]]}
[null,null,null,null,"SECRETARIA DE EDUCACION DISTRITAL CARTAGENA DE INDIAS"]
[null,null,null,null,"GEDGE02. COMPROMISO DE LA DIRECCIÓN"]
[null,null,null,null,"INFORME DE SEGUIMIENTO"]
[null,null,null,null,"Codigo:   GEDGE02-F001",null,null,null,"Versión: 1",null,null,null,"Vigencia: 20/10/2009"]
[]
[null,"FECHA:","Diciembre 15 de 2016",null,null,"PERIODO",{"$f":"'LA ESCUELA COMO EJE INTEGRADOR'!G6:I6","v":"Diciembre 15 de 2016"},null,null,"RESPONSABLE:",null,"CECILIA MORALES URSHELA"]
[null,"1. INDICADORES"]
[null,{"$f":"INDICADORES!C22","v":"Proyectos ambientales educativos - PRAES ajustados en IEO"}]
[null,"META","REAL","META","REAL","META","REAL","META","REAL","META","REAL","META","REAL","META","REAL","META","REAL"]
[null,{"$f":"INDICADORES!E22","v":10},{"$f":"INDICADORES!G22","v":7}]
[null,"GRAFICAS"]
[]
[]
[]
[]
[]
[]
[]
[]
[]
[]
[]
[]
[]
[]
[]
[]
[]
[]
[]
[]
[]
[]
[]
[]
[]
[]
[]
[]
[]
["E"]
[]
[]
[]
[]
[]
[null,"2. ANALISIS"]
[null,"ANALISIS:",null,"1- En este proyecto se contó  con el acompañamiento pedagógico de diez (10) aliados estratégicos para  su  ajuste de acuerdo al contexto y proyecto educativo institucional - PEI"]
[null,"RECOMENDACIONES \nPARA LA MEJORA",null,null,"Para la vigencia 2017 se requiere asistir tecnicamente a las IEO focalizadas a través del acompañamiento presencial y situado teniendo en cuenta su estado actual."]
[null,"¿Se generan \nacciones?",null,"Correctivas     No. ",null,null," Preventiva        No.",null,null,"    De mejora      No. 1",null,"x","Producto No Conforme",null,null,null,"No."]
[]
[]
[null,null,null,null,null,null,null,null,"  "]
[]
[]
[]
[]
[]
[null,null,null,null,null,null,null,null,"  "]

{"sheet":"CIUDAD ESCUELA COMPROMISO","index":5,"n_rows":45,"n_cols":16,"rows_kept":45,"cut":false,"hidden":false,"merged":[[7,2,7,3],[7,0,7,1],[7,14,7,15],[7,12,7,13],[7,10,7,11],[7,8,7,9],[7,6,7,7],[35,0,35,1],[34,3,34,15],[35,11,35,14],[3,7,3,10],[3,11,3,15],[5,1,5,3],[0,0,3,2],[3,3,3,6],[5,10,5,15],[6,0,6,15],[7,4,7,5],[0,3,0,15],[1,3,1,15],[2,3,2,15],[5,5,5,7],[34,0,34,2],[10,0,10,15],[12,0,12,1],[12,3,12,5],[32,0,32,15],[33,0,33,1],[33,2,33,15],[13,0,13,1],[13,3,13,5]]}
[null,null,null,"SECRETARIA DE EDUCACION DISTRITAL CARTAGENA DE INDIAS"]
[null,null,null,"GEDGE02. COMPROMISO DE LA DIRECCIÓN"]
[null,null,null,"INFORME DE SEGUIMIENTO"]
[null,null,null,"Codigo:   GEDGE02-F001",null,null,null,"Versión: 1",null,null,null,"Vigencia: 20/10/2009"]
[]
["FECHA:","Diciembre 15 de 2016",null,null,"PERIODO","Diciembre 15 de 2016",null,null,"RESPONSABLE:",null,"CECILIA MORALES URSHELA"]
["1. INDICADORES"]
["Numero de IEO con el programa escuelas para padres fortalecidos"]
["META","REAL","META","REAL","META","REAL","META","REAL","META","REAL","META","REAL","META","REAL","META","REAL"]
[10,10]
["GRAFICAS"]
[]
[]
[]
[]
[]
[]
[]
[]
[]
[]
[]
[]
[]
[]
[]
[]
[]
[]
[]
[]
[]
["2. ANALISIS"]
["ANALISIS:",null,"1. La meta en este proyecto se cumplió con el acompañamiento del Ministerio de Educacion Nacional MEN a través de la estrategia  \"RED PAPAZ \" en el cual se atendieron 31 IEO  en 3 sesiones con acompañamiento grupal y posteriormente  de manera virtual  "]
["RECOMENDACIONES \nPARA LA MEJORA",null,null,"1- Seguimiento a la estrategia \"RED PAPAZ\"  en las 31  IEO  \n2- Seguimiento al  desarrollo del DIA E, Dia de la familia \n3-Asistencia técnica a las IE focalizadas de acuerdo  a la normatividad vigente\n"]
["¿Se generan \nacciones?",null,"Correctivas     No. ",null,null," Preventiva        No.",null,null,"    De mejora      No. 1",null,"x","Producto No Conforme",null,null,null,"No."]
[]
[]
[null,null,null,null,null,null,null,"  "]
[]
[]
[]
[]
[]
[null,null,null,null,null,null,null,"  "]

{"sheet":"IMPLEMENTACION CATEDRA PAZ","index":6,"n_rows":37,"n_cols":16,"rows_kept":37,"cut":false,"hidden":false,"merged":[[0,0,3,2],[0,3,0,15],[1,3,1,15],[2,3,2,15],[3,7,3,10],[3,3,3,6],[3,11,3,15],[5,1,5,3],[5,5,5,7],[5,10,5,15],[6,0,6,15],[24,0,24,15],[7,2,7,3],[7,0,7,1],[7,4,7,5],[7,6,7,7],[44,4,49,4],[27,0,27,1],[27,11,27,14],[7,12,7,13],[7,14,7,15],[10,0,10,15],[12,0,12,1],[12,3,12,5],[13,0,13,1],[13,3,13,5],[7,8,7,9],[7,10,7,11],[25,0,25,1],[25,2,25,15],[26,0,26,2],[26,3,26,15]]}
[null,null,null,"SECRETARIA DE EDUCACION DISTRITAL CARTAGENA DE INDIAS"]
[null,null,null,"GEDGE02. COMPROMISO DE LA DIRECCIÓN"]
[null,null,null,"INFORME DE SEGUIMIENTO"]
[null,null,null,"Codigo:   GEDGE02-F001",null,null,null,"Versión: 1",null,null,null,"Vigencia: 20/10/2009"]
[]
["FECHA:","Diciembre 15 de 2016",null,null,"PERIODO","Diciembre 15 de 2016",null,null,"RESPONSABLE:",null,"CECILIA MORALES URSHELA"]
["1. INDICADORES"]
["Docentes formados en justicia, reconciliacion y tolerancia",null,"Numero de IEO con la catedra Cartagena en paz implementada"]
["META","REAL","META","REAL","META","REAL","META","REAL","META","REAL","META","REAL","META","REAL","META","REAL"]
[200,92,10,8]
["GRAFICAS"]
[]
[]
[]
[]
[]
[]
[]
[]
[]
[]
[]
[]
[]
["2. ANALISIS"]
["ANALISIS:",null,"1- Identificacion de buenas practicas para el establecimiento de linea base 2015"]
["RECOMENDACIONES \nPARA LA MEJORA",null,null,"1. Asistencias técnicas a  50 IEO sobre lineamientos para el desarrollo de la Cátedra Cartagena en Paz."]
["¿Se generan \nacciones?",null,"Correctivas     No. ",null,null," Preventiva        No.",null,null,"    De mejora      No. 1",null,"x","Producto No Conforme",null,null,null,"No."]
[]
[]
[null,null,null,null,null,null,null,"  "]
[]
[]
[]
[]
[]
[null,null,null,null,null,null,null,"  "]

{"sheet":"MEJORES DOCENTES Y DIRECTIVOS","index":7,"n_rows":44,"n_cols":14,"rows_kept":44,"cut":false,"hidden":false,"merged":[[34,0,34,1],[34,11,34,12],[13,0,13,1],[13,3,13,5],[32,2,32,13],[33,0,33,2],[33,3,33,13],[31,0,31,13],[32,0,32,1],[7,4,7,5],[7,6,7,7],[7,8,7,9],[7,10,7,11],[7,12,7,13],[10,0,10,13],[12,0,12,1],[12,3,12,5],[0,0,3,2],[0,3,0,13],[1,3,1,13],[2,3,2,13],[3,3,3,6],[3,7,3,10],[3,11,3,13],[5,1,5,3],[5,5,5,7],[5,10,5,13],[6,0,6,13],[7,0,7,1],[7,2,7,3]]}
[null,null,null,"SECRETARIA DE EDUCACION DISTRITAL CARTAGENA DE INDIAS"]
[null,null,null,"GEDGE02. COMPROMISO DE LA DIRECCIÓN"]
[null,null,null,"INFORME DE SEGUIMIENTO"]
[null,null,null,"Codigo:   GEDGE02-F001",null,null,null,"Versión: 1",null,null,null,"Vigencia: 20/10/2009"]
[]
["FECHA:","Diciembre 15 De 2016",null,null,"PERIODO","Diciembre 15 De 2016",null,null,"RESPONSABLE:",null,"CECILIA MORALES URSHELA"]
["1. INDICADORES"]
["Numero de docentes formados en evaluacion por competencias",null,"Numero de docentes formados en metodologia de investigacion ",null,"Numero de docentes y directivos docentes formados en especializaciones y/o maestrias ",null,"Numero de directivos docentes cualificados en gestion escolar",null,"Numero de docentes y directivos docentes con experiencias educativas innovadoras"]
["META","REAL","META","REAL","META","REAL","META","REAL","META","REAL","META","REAL","META","REAL"]
[225,218,100,156,40,156,0,0,100,340]
["GRAFICAS"]
[]
[]
[]
[]
[]
[]
[]
[]
[]
[]
[]
[]
[]
[]
[]
[]
[]
[]
[]
[]
["2. ANALISIS"]
["ANALISIS:",null,"1. Los avances en este proyecto se dieron a traves de acompañamientos de aliados y convenios, tales como \nConvenio Universidad de Cartagena, linea de investigacion en la maestria,coordinacion con el proyecto radio escolar y acompañamiento de aliados\n"]
["RECOMENDACIONES \nPARA LA MEJORA",null,null,"1. Aprobacion del Plan de Formacion Docente por parte de la JUDI.                                                                                2. Convocatoria publica o invitacion publica a Universidades o entidades a fines en programas de formacion.             3. Recepcion, estudio y seleccion de propuesta para la conformacion del Banco.                                                            4. Contratacion para dar inicio al Programa de Formacion.                                                                                               5. Acompañamiento y seguimiento a entidades oferentes. "]
["¿Se generan \nacciones?",null,"Correctivas     No. ",null,null," Preventiva        No.",null,null,"    De mejora      No. 1",null,"x","Producto No Conforme",null,"No."]
[]
[]
[null,null,null,null,null,null,null,"  "]
[]
[]
[]
[]
[]
[null,null,null,null,null,null,null,"  "]

{"sheet":"INCORPORACION DE LA TECNOLOGIA","index":8,"n_rows":46,"n_cols":14,"rows_kept":46,"cut":false,"hidden":false,"merged":[[35,0,35,2],[12,0,12,1],[12,3,12,5],[33,0,33,13],[34,0,34,1],[34,2,34,13],[13,0,13,1],[13,3,13,5],[5,5,5,7],[5,10,5,13],[6,0,6,13],[10,0,10,13],[7,10,7,11],[36,0,36,1],[35,3,35,13],[36,11,36,12],[3,7,3,10],[3,11,3,13],[5,1,5,3],[7,6,7,7],[7,8,7,9],[7,2,7,3],[3,3,3,6],[0,0,3,2],[7,0,7,1],[7,4,7,5],[0,3,0,13],[1,3,1,13],[2,3,2,13]]}
[null,null,null,"SECRETARIA DE EDUCACION DISTRITAL CARTAGENA DE INDIAS"]
[null,null,null,"GEDGE02. COMPROMISO DE LA DIRECCIÓN"]
[null,null,null,"INFORME DE SEGUIMIENTO"]
[null,null,null,"Codigo:   GEDGE02-F001",null,null,null,"Versión: 1",null,null,null,"Vigencia: 20/10/2009"]
[]
["FECHA:","Diciembre 15 de 2016",null,null,"PERIODO","Diciembre 15 de 2016",null,null,"RESPONSABLE:",null,"CECILIA MORALES URSHELA"]
["1. INDICADORES"]
["Número de docentes y directivos docentes formados en uso y apropiación de TIC",null,"Número de docentes que aplican las TIC en procesos de enseñanzas y aprendizajes"]
["META","REAL","META","REAL","META","REAL","META","REAL","META","REAL","META","REAL"]
[650,614,50,50]
[0]
[]
[]
[]
[]
[]
[]
[]
[]
[]
[]
[]
[]
[]
[]
[]
[]
[]
[]
[]
[]
[]
[]
["2. ANALISIS"]
["ANALISIS:",null,"1. El cumplimiento se dio a traves del  acompañamiento de entidades aliadas como ASOANDES, Computadore para educar y MINTIC, Colegios 10 TIC  mediante convenio con Ministerio de Educacion nacional - MINTIC - EAFIC, Antioquia.                                                                                                                                                                                                  "]
["RECOMENDACIONES \nPARA LA MEJORA",null,null,"\n1. Asistencias tecnicas a las I.E focalizadas mediante el acompañamiento de aliados. \n2. Aplicacion de instrumento que permita la recoleccion, revision y consolidacion de Buenas Practicas en el uso de TIC. "]
["¿Se generan \nacciones?",null,"Correctivas     No. ",null,null," Preventiva        No.  X",null,"______","    De mejora  No. 1","X",null,"Producto No Conforme",null,"No."]
[]
[]
[null,null,null,null,null,null,null,"  "]
[]
[]
[]
[]
[]
[null,null,null,null,null,null,null,"  "]

{"sheet":"FORTALECIMIENTOMODE ETNOEDUC","index":9,"n_rows":43,"n_cols":14,"rows_kept":43,"cut":false,"hidden":false,"merged":[[0,0,3,2],[0,3,0,13],[1,3,1,13],[2,3,2,13],[3,3,3,6],[3,7,3,10],[3,11,3,13],[33,0,33,1],[33,11,33,12],[30,0,30,13],[4,10,4,13],[5,0,5,13],[6,0,6,1],[6,2,6,3],[6,4,6,5],[6,6,6,7],[6,8,6,9],[6,10,6,11],[9,0,9,13],[11,0,11,1],[11,3,11,5],[12,0,12,1],[12,3,12,5],[4,5,4,7],[31,0,31,1],[31,2,31,13],[32,0,32,2],[32,3,32,13],[6,12,6,13],[4,1,4,3]]}
[null,null,null,"SECRETARIA DE EDUCACION DISTRITAL CARTAGENA DE INDIAS"]
[null,null,null,"GEDGE02. COMPROMISO DE LA DIRECCIÓN"]
[null,null,null,"INFORME DE SEGUIMIENTO"]
[null,null,null,"Codigo:   GEDGE02-F001",null,null,null,"Versión: 1",null,null,null,"Vigencia: 20/10/2009"]
["FECHA:","Diciembre 15 de 2016",null,null,"PERIODO","Diciembre 15 de 2016",null,null,"RESPONSABLE:",null,"CECILIA MORALES URSHELA"]
["1. INDICADORES"]
["Numero de IEO Etnoeducatvas con PEI ajustados y actualizados",null,"Numero de IEO que desarrollan la catedra estudios afrocolombianos"]
["META","REAL","META","REAL","META","REAL","META","REAL","META","REAL","META","REAL","META","REAL"]
[5,{"$f":"INDICADORES!E68","v":5},10,10]
["GRAFICAS"]
[]
[]
[]
[]
[]
[]
[]
[]
[]
[]
[]
[]
[]
[]
[]
[]
[]
[]
[]
[]
["2. ANALISIS"]
["ANALISIS:",null,"1. Se avanzó en la caracterizacion del sector etnoeducativo e implementacion a la ruta de resignificacion de PEI como PEC de manera conjunta, I.E.O y SED.                                                                                                                                                                     2. Se avanzó en la Consolidacion de la catedra de Estudios Afrocolombianos."]
["RECOMENDACIONES \nPARA LA MEJORA",null,null,"1.Vinculación del equipo docente de las IEO Etnoeducativas, en el proceso de asesoría, acompañamiento y asistencia técnica para la resignificación de los PEC.                                                                                                                                         2. Integración de la Cátedra de Estudios Afrocolombianos al currículo. "]
["¿Se generan \nacciones?",null,"Correctivas     No. ",null,null," Preventiva        No.",null,null,"    De mejora      No. 1",null,"x","Producto No Conforme",null,"No."]
[]
[]
[null,null,null,null,null,null,null,"  "]
[]
[]
[]
[]
[]
[null,null,null,null,null,null,null,"  "]

{"sheet":"SABER MAS SABER MEJOR","index":10,"n_rows":34,"n_cols":15,"rows_kept":34,"cut":false,"hidden":false,"merged":[[22,3,22,14],[23,1,23,3],[23,4,23,14],[7,13,7,14],[24,1,24,2],[24,12,24,13],[10,1,10,14],[12,1,12,2],[12,4,12,6],[13,1,13,2],[13,4,13,6],[21,1,21,14],[22,1,22,2],[5,2,5,4],[5,6,5,8],[5,11,5,14],[6,1,6,14],[7,1,7,2],[7,3,7,4],[7,5,7,6],[7,7,7,8],[7,9,7,10],[7,11,7,12],[0,1,3,3],[0,4,0,14],[1,4,1,14],[2,4,2,14],[3,4,3,7],[3,8,3,11],[3,12,3,14]]}
[null,null,null,null,"SECRETARIA DE EDUCACION DISTRITAL CARTAGENA DE INDIAS"]
[null,null,null,null,"GEDGE02. COMPROMISO DE LA DIRECCIÓN"]
[null,null,null,null,"INFORME DE SEGUIMIENTO"]
[null,null,null,null,"Codigo:   GEDGE02-F001",null,null,null,"Versión: 1",null,null,null,"Vigencia: 20/10/2009"]
[]
[null,"FECHA:","Diciembre  15 de 2016",null,null,"PERIODO","Diciembre  15 de 2016",null,null,"RESPONSABLE:",null,"CECILIA MORALES URSHELA"]
[null,"1. INDICADORES"]
[null,"Numero de IEO con ISCE e la media , con nivel al menos igual al ISCE promedio nacional",null,"Numero de IEO con grado 11 con desempeños alieados en la clasificacion A+, A y B",null,"Mejorar componente , desempeño ISCE Basica  Primaria",null,"Mejorar componente ISCE Basica Secundaria",null,"Mejorar componente(ISCE)desempeño Media",null,"Numero de IEO con semilleros de investigacion implementados "]
[null,"META","REAL","META","REAL","META","REAL","META","REAL","META","REAL","META","REAL","META","REAL"]
[null,9,9,6,6,2.5,5,5,5,5,5,5,5]
[null,"GRAFICAS"]
[]
[]
[]
[]
[]
[]
[]
[]
[]
[]
[null,"2. ANALISIS"]
[null,"ANALISIS:",null,"1-Se estableció  convenio con la Universidad de Cartagena para el fortalecimiento de las areas de lenguaje y matematicas dirigido a 26 IEO, y el acompañamiento del Ministerio de Educacion Nacional y el ICFES para  el analisis y uso de resultados de la prueba saber aplicado a los PMI"]
[null,"RECOMENDACIONES \nPARA LA MEJORA",null,null,"1- Priorizar las IEO ubicadas  en clasificacion D , como criterio de selección para participar en los proyectos de la SED del MEN y aliados\n2- Priorizar las IEO  con indice sintetico por debajo de la media , como criterio de selección para participar en los proyectos de la SED del MEN y aliados \n3-Asistir tecnicamente a las IEO focalizadas para el acompañamiento en el desarrollo del DIA E, DIA E DE FAMILIA y SIEMPRE DIA E\n"]
[null,"¿Se generan \nacciones?",null,"Correctivas     No. ",null,null," Preventiva        No.",null,null,"    De mejora      No. 1",null,"X","Producto No Conforme",null,"No."]
[]
[]
[null,null,null,null,null,null,null,null,"  "]
[]
[]
[]
[]
[]
[null,null,null,null,null,null,null,null,"  "]

{"sheet":"ACTUALIZACION DE CURR ESCOLARES","index":11,"n_rows":37,"n_cols":14,"rows_kept":37,"cut":false,"hidden":false,"merged":[[25,2,25,13],[26,0,26,2],[26,3,26,13],[7,12,7,13],[27,0,27,1],[27,11,27,12],[10,0,10,13],[12,0,12,1],[12,3,12,5],[13,0,13,1],[13,3,13,5],[24,0,24,13],[25,0,25,1],[5,10,5,13],[6,0,6,13],[7,0,7,1],[7,2,7,3],[7,4,7,5],[7,6,7,7],[7,8,7,9],[7,10,7,11],[5,0,5,3],[5,4,5,7],[0,0,3,2],[0,3,0,13],[1,3,1,13],[2,3,2,13],[3,3,3,6],[3,7,3,10],[3,11,3,13]]}
[null,null,null,"SECRETARIA DE EDUCACION DISTRITAL CARTAGENA DE INDIAS"]
[null,null,null,"GEDGE02. COMPROMISO DE LA DIRECCIÓN"]
[null,null,null,"INFORME DE SEGUIMIENTO"]
[null,null,null,"Codigo:   GEDGE02-F001",null,null,null,"Versión: 1",null,null,null,"Vigencia: 20/10/2009"]
[]
["FECHA: Diciembre 15 de 2016",null,null,null,"PERIODO: Diciembre 15 de 2016",null,null,null,"RESPONSABLE:",null,"CECILIA MORALES URSHELA"]
["1. INDICADORES"]
["Numero de instituciones educativas con curriculos ajustados ",null,"Numero de instiruciones educativas fortalecidas en la gestion escolar integral ",null,"Numero de instituciones educativas con proyectos educativos institucionales resignificados"]
["META","REAL","META","REAL","META","REAL","META","REAL","META","REAL","META","REAL","META","REAL"]
[10,16,10,22,10,22]
["GRAFICAS"]
[]
[]
[]
[]
[]
[]
[]
[]
[]
[]
[]
[]
[]
["2. ANALISIS"]
["ANALISIS:",null,"1. Se recibio acompañamiento del Ministerio de Educacion Nacional -MEN a traves de la estrategia de integracion de curriculos escolares a 16 IEO en 4 encuentros presenciales, en el cual participaron el rector y los equipos de gestión, para un promedio de 100 representantes de IEO.                                                                                                                                            2. Se contó con el acompañamiento del programa educativo fortalecimiento del sistema de gestión escolar a través de Lideres Siglo XXI- Fundación Nutresa.                                                                                                                                                3. Se contó con el acompañamiento del programa educativo fortalecimiento del sistema de gestión escolar a través de Lideres Siglo XXI- Fundación Nutresa. "]
["RECOMENDACIONES \nPARA LA MEJORA",null,null,"1- Elaboración del esquema de acompañamiento y seguimiento para la actualizacion de curriculos escolares en las IEO.\n2- Focalizacion de 26  IEO para el acompañamiento en actualizacion de curriculos escolares. \n3-Mesa de trabajo con entidades administradoras de las IEO  para el establecimiento de acuerdos en el cumplimiento de la actualizacion de curriculos escolares.\n4- Mesa de trabajo con aliados para el establecimiento de acuerdos  en el cumplimiento de la actualizacion de curriculos escolares.                                                                                                                                                                 5. Acompañamiento y seguimiento al cumplimiento de las especificaciones técnicas de las IEO en gestión del PEI y del PMI."]
["¿Se generan \nacciones?",null,"Correctivas     No. ",null,null," Preventiva        No.",null,null,"    De mejora      No. ",null,"x","Producto No Conforme",null,"No."]
[]
[]
[null,null,null,null,null,null,null,"  "]
[]
[]
[]
[]
[]
[null,null,null,null,null,null,null,"  "]

{"sheet":"ESCUELAS BILINGUES","index":12,"n_rows":36,"n_cols":18,"rows_kept":36,"cut":false,"hidden":false,"merged":[[7,12,7,13],[7,10,7,11],[7,8,7,9],[7,0,7,1],[26,0,26,1],[26,11,26,12],[23,0,23,17],[24,0,24,1],[24,2,24,17],[10,0,10,17],[12,0,12,1],[25,0,25,2],[25,3,25,17],[12,3,12,5],[13,0,13,1],[13,3,13,5],[0,3,0,17],[7,2,7,3],[7,4,7,5],[7,6,7,7],[3,11,3,17],[3,7,3,10],[3,3,3,6],[2,3,2,17],[1,3,1,17],[0,0,3,2],[5,1,5,3],[5,5,5,7],[5,10,5,17],[6,0,6,17],[7,16,7,17],[7,14,7,15]]}
[null,null,null,"SECRETARIA DE EDUCACION DISTRITAL CARTAGENA DE INDIAS"]
[null,null,null,"GEDGE02. COMPROMISO DE LA DIRECCIÓN"]
[null,null,null,"INFORME DE SEGUIMIENTO"]
[null,null,null,"Codigo:   GEDGE02-F001",null,null,null,"Versión: 1",null,null,null,"Vigencia: 20/10/2009"]
[]
["FECHA:               ","Diciembre 15 de 2016",null,null,"PERIODO","Diciembre 15 de 2016",null,null,"RESPONSABLE:",null,"CECILIA MORALES URSHELA"]
["1. INDICADORES"]
["% de estudiantes de IEO con jornada extendida bilingüe con nivel minimo \"B1\" en las pruebas Saber 11°, según el MCERL"]
["META","REAL","META","REAL","META","REAL","META","REAL","META","REAL","META","REAL","META","REAL","META","REAL","META","REAL"]
[0.05,3.7999999999999999E-2]
["GRAFICAS"]
[]
[]
[]
[]
[]
[]
[]
[]
[]
[]
[]
[]
["2. ANALISIS"]
["ANALISIS:",null,"1. Talleres de uso y apropiación de textos de inglés Way To Go! a docentes de inglés.                                                                                                                                                          2. talleres de socialización de los curriculos sugeridos por el Ministerio de Educación Nacional.                                                                                                                               3. Inmersiones nacionales e internacionales a docentes de inglés ofrecidas por el MEN.                                                                                                                "]
["RECOMENDACIONES \nPARA LA MEJORA",null,null,"1. Alianzas estrategicas con entidades especializadas en enseñanza del idioma inglés para que acompañen pedagogicamente a estudiantes de grado 11°, que permitan alcanzar niveles satisfactorios en la prueba Saber 11°.                                                                         2. Inmersiones para docentes en paises angloparlantes, permitiendo una mejora en las competencias lingüisticas de los docentes participantes.                                                                                                                                                                                                                                    3. Olimpiadas Intercolegiales Bilingüe para docentes de inglés de las IEO del Distrito focalizadas en el proyecto.                                                                                            4. Asistencia Técnica a 10 docentes de inglés, con el acompañamiento de Instituciones Educativas de la ciudad de Barranquilla Colegio Jorge N. Abello, Instituto Alexander Von Humboldt, Institución Educativa Distrital Madre Marcelina; con buenos resultados en el desempeño de sus estudiantes en la prueba Saber 11° en inglés.                                                                                                                                                                                                                                                   5. Prueba diagnostica de inglés para ubicar el nivel de inglés en docentes de grado 6° a 11° de las IEO focalizadas en el proyecto."]
["¿Se generan \nacciones?",null,"Correctivas     No.",null,null," Preventiva        No.",null,null,"    De mejora      No.",null,"X","Producto No Conforme",null,null,null,null,null,"No."]
[]
[]
[null,null,null,null,null,null,null,"  "]
[]
[]
[]
[]
[]
[null,null,null,null,null,null,null,"  "]

{"sheet":"RESUMEN POR PROYECTOS","index":13,"n_rows":59,"n_cols":20,"rows_kept":59,"cut":false,"hidden":false,"merged":[[4,0,4,19],[46,0,46,19],[47,2,47,19],[48,3,48,19],[49,17,49,19],[49,11,49,16],[49,8,49,10],[12,3,12,5],[13,0,13,1],[13,3,13,5],[10,0,10,19],[5,1,5,3],[5,5,5,7],[48,0,48,2],[49,0,49,1],[7,18,7,19],[0,0,3,2],[3,3,3,6],[3,7,3,10],[0,3,0,19],[1,3,1,19],[2,3,2,19],[3,11,3,19],[6,0,6,19],[5,10,5,19],[47,0,47,1],[7,0,7,1],[7,2,7,3],[7,4,7,5],[7,6,7,7],[7,8,7,9],[7,10,7,11],[7,12,7,13],[7,14,7,15],[7,16,7,17],[12,0,12,1]]}
[null,null,null,"SECRETARIA DE EDUCACION DISTRITAL CARTAGENA DE INDIAS"]
[null,null,null,"GEDGE02. COMPROMISO DE LA DIRECCIÓN"]
[null,null,null,"INFORME DE SEGUIMIENTO"]
[null,null,null,"Codigo:   GEDGE02-F001",null,null,null,"Versión: 1",null,null,null,"Vigencia: 20/10/2009"]
[]
["FECHA: ","Diciembre 15 de 2016",null,null,"PERIODO","Diciembre 15 de 2016",null,null,"RESPONSABLE:",null,"CECILIA MORALES URSHELA"]
["1. INDICADORES"]
["LA ESCUELA COMO EJE INTEGRADOR ",null,"ESCUELAS VERDES",null,"CIUDAD ESCUELA COMPROMISO DE TODOS",null,"IMPLEMENTACION DE LA CATEDRA DE PAZ ",null,"MEJORES DOCENTES Y DIRECTIVOS DOCENTES",null,"FORTALECIMIENTO DEL MODELO PEDAGOGICO ETNOEDUCATIVO",null,"SABER MAS SABER MEJOR",null,"ACTUALIZACION DE CURRICULOS ESCOLARES",null,"INCORPORACION DE LA TECNOLOGIA EN EL PROCESO DE ENSEÑANZA APRENDIZAJE",null,"ESCUELAS BILINGUES "]
["META","REAL","META","REAL","META","REAL","META","REAL","META","REAL","META","REAL","META","REAL","META","REAL","META","REAL","META   ","REAL"]
[0.45,0.67,0.45,1,0.45,1,0.45,0.71,0.45,1,0.45,0.5,0.45,1,0.45,1,0.45,1,0.45,1]
["GRAFICAS"]
[]
[]
[]
[]
[]
[]
[]
[]
[]
[]
[]
[]
[]
[]
[]
[]
[]
[]
[]
[]
[]
[]
[]
[]
[]
[]
[]
[]
[]
[]
[]
[]
[]
[]
[]
["2. ANALISIS"]
["ANALISIS:",null,"De los diez proyectos establecidos en el Plan de Desarrollo \"PRIMERO LA GENTE 2016 - 2019\", se dio cumplimiento de acuerdo a los indicadores y metas al100%. Debido al acompañamiento de aliados y gestión de los líderes de proyectos. "]
["RECOMENDACIONES \nPARA LA MEJORA",null,null,"1. Revisar las asignaciones presupuestal de cada proyecto y establecer un Plan de mejoramiento para la utilización de los recursos.  "]
["¿Se generan \nacciones?",null,"Correctivas     No.",null,null," Preventiva        No.",null,null,"    De mejora      No.   X",null,null,"Producto No Conforme",null,null,null,null,null,"No."]
[]
[]
[null,null,null,null,null,null,null,"  "]
[]
[]
[]
[]
[]
[null,null,null,null,null,null,null,"  "]

{"sheet":"PAM  -DIC 2016","index":14,"n_rows":38,"n_cols":14,"rows_kept":38,"cut":false,"hidden":false,"merged":[[3,7,3,10],[3,11,3,13],[7,2,7,3],[7,4,7,5],[7,6,7,7],[7,8,7,9],[7,10,7,11],[0,0,3,2],[0,3,0,13],[1,3,1,13],[2,3,2,13],[3,3,3,6],[5,1,5,3],[5,5,5,7],[5,10,5,13],[6,0,6,13],[7,0,7,1],[28,0,28,1],[28,11,28,12],[25,0,25,13],[26,0,26,1],[26,2,26,13],[27,0,27,2],[27,3,27,13],[10,0,10,13],[12,0,12,1],[12,3,12,5],[13,0,13,1],[13,3,13,5]]}
[null,null,null,"SECRETARIA DE EDUCACION DISTRITAL CARTAGENA DE INDIAS"]
[null,null,null,"GEDGE02. COMPROMISO DE LA DIRECCIÓN"]
[null,null,null,"INFORME DE SEGUIMIENTO"]
[null,null,null,"Codigo:   GEDGE02-F001",null,null,null,"Versión: 1",null,null,null,"Vigencia: 20/10/2009"]
[]
["FECHA:",{"$f":"'ESCUELAS BILINGUES'!B6:D6","v":"Diciembre 15 de 2016"},null,null,"PERIODO",{"$f":"'ESCUELAS BILINGUES'!F6:H6","v":"Diciembre 15 de 2016"},null,null,"RESPONSABLE:",null,"CECILIA MORALES URSHELA"]
["1. INDICADORES"]
["CUMPLIMIENTO PAM Diciembre  2016"]
["META","REAL","META","REAL","META","REAL","META","REAL","META","REAL","META","REAL","META","REAL"]
[0.9,0.89]
["GRAFICAS"]
[]
[]
[]
[]
[]
[]
[]
[]
[]
[]
[]
[]
[]
[]
["2. ANALISIS"]
["ANALISIS:",null,"En los resultados del PAM, durante la vigencia 2016, se observa que la meta se cumplió en un 89%. Sólo se asignó presupuesto al proyecto Saber más, saber mejor por un valor de $440,000,000,oo en convenio con la Universidad de Cartagena. Los proyectos restantes se dieron por gestión de los lideres, aliados y acompañamiento del MEN. "]
["RECOMENDACIONES \nPARA LA MEJORA",null,null,"1. Alinear las actividades que se programen en cada uno de los proyectos teniendo en cuenta los indicadores y metas de cada proyecto.                                                                                                                                                 2. Desarrollar las asistencias tecnicas en los diferentes proyectos que permitan impactar los aprendizajes de los estudiantes.                                                                                                                                                                    3. Continuidad en las alianzas y acompañamiento del MEN.                  "]
["¿Se generan \nacciones?",null,"Correctivas     No.",null,null," Preventiva        No.",null,null,"    De mejora      No.",null,"X","Producto No Conforme",null,"No."]
[]
[]
[null,null,null,null,null,null,null,"  "]
[]
[]
[]
[]
[]
[null,null,null,null,null,null,null,"  "]